Cogmind - Beta 12 @@@ ROGUE MODE // 2023.07.06 @ 15:16:44 Player: Decinym Result: Self-destructed Performance ------------- Evolutions (2) 1000 Regions Visited (5) 1000 Robots Destroyed (24) 120 Value Destroyed (757) 757 Prototype IDs (24) 480 Alien Tech Used (0) 0 Bonus (335) 335 TOTAL SCORE: 3692 Bonus ------- Follower Combat Kills 35 Aligned with FarCom 300 Cogmind --------- Core Integrity 505/550 Matter 290/300 Energy 105/160 System Corruption 0% Temperature Cool (0) Movement Treading (320) Ox2 Location -8/Materials Parts ------- > --- POWER (1) -------- Light Nuclear Core > --- PROPULSION (3) --- Light Treads Light Treads > --- UTILITY (5) ------ Heat Sink Advanced Heat Sink Huge Storage Unit Improved Utility Shielding > --- WEAPON (2) ------- Particle Cannon > --- INVENTORY (25) --- Light Ion Engine Potential Leg Potential Leg Small Storage Unit Faulty Experimental Sensor Array Rocket Launcher Plasma Cutter Peak State ------------ > --- POWER ------------ Light Deuterium Engine > --- PROPULSION ------- Light Treads Potential Leg Potential Leg > --- UTILITY ---------- Heat Sink Small Storage Unit > --- WEAPON ----------- Improved Medium Laser Improved Medium Laser > --- INVENTORY -------- Light Ion Engine Light Treads Huge Storage Unit Experimental Sensor Array Particle Cannon Rocket Launcher Plasma Cutter [Rating: 33] Favorites ----------- Power Ion Engine Engine Ion Engine Power Core Light Nuclear Core Propulsion Aluminum Leg Treads Light Treads Leg Aluminum Leg Utility Heat Sink Device Heat Sink Storage Small Storage Unit Protection Improved Utility Shielding Weapon Improved Medium Laser Energy Gun Improved Medium Laser Energy Cannon Particle Cannon Ballistic Gun Assault Rifle Launcher Rocket Launcher Build | -11 -10 -10 -10 -9 -8 ------- Run | Jun Mat Min Exi Min Mat Slots Evolved 4 | . . . . . 4 Power . | . . . . . . Propulsion 1 | . . . . . 1 Utility 3 | . . . . . 3 Weapon . | . . . . . . Parts Attached 22 | . 3 . 2 . 17 Power 3 | . . . . . 3 Engine 2 | . . . . . 2 Core 1 | . . . . . 1 Reactor . | . . . . . . Propulsion 6 | . . . 2 . 4 Treads 4 | . . . . . 4 Leg 2 | . . . 2 . . Wheel . | . . . . . . Hover . | . . . . . . Flight . | . . . . . . Utility 6 | . 1 . . . 5 Device 3 | . 1 . . . 2 Storage 1 | . . . . . 1 Processor . | . . . . . . Hackware . | . . . . . . Protection 2 | . . . . . 2 Artifact . | . . . . . . Weapon 7 | . 2 . . . 5 Energy Gun 4 | . 2 . . . 2 Energy Cannon 1 | . . . . . 1 Ballistic Gun . | . . . . . . Ballistic Cannon . | . . . . . . Launcher 2 | . . . . . 2 Special Weapon . | . . . . . . Impact Weapon . | . . . . . . Slashing Weapon . | . . . . . . Piercing Weapon . | . . . . . . Special Melee Weapon . | . . . . . . Unidentified Prototypes 1 | . 1 . . . . Parts Lost 5 | . . . . . 5 Power 2 | . . . . . 2 Propulsion . | . . . . . . Utility 2 | . . . . . 2 Weapon 1 | . . . . . 1 Highest Loss Streak 2 | . . . . . 2 To Critical Strikes . | . . . . . . Average Slot Usage (%) 93 | . 90 100 100 100 81 Engine 12 | . 14 14 14 14 8 Treads 5 | . . . . . 19 Leg 20 | . 28 28 28 28 3 Device 12 | . 5 14 14 14 13 Storage 12 | . 14 14 14 14 9 Protection 2 | . . . . . 8 Energy Gun 24 | . 28 28 28 28 16 Naked Turns . | . . . . . . Heaviest Build 102 | 13 17 17 17 17 102 Greatest Support 60 | 20 20 20 60 60 60 Greatest Overweight (x) 2 | . . . . . 2 Average Overweight (x) . | . . . . . . Largest Inventory Capacity 25 | . 8 8 8 8 25 Average Capacity 10 | . 8 8 8 8 17 Most Carried 9 | . 8 8 8 8 9 Average Carried 7 | . 6 8 8 7 8 Final Capacity 25 | 8 8 8 8 8 25 Final Carried 8 | 6 8 8 8 8 7 Class Distribution -------------------- 80% | Mutant 19% | Scavenger-Mutant Dominant Class ---------------- Mutant | -10/Materials Mutant | -10/Mines Mutant | -10/Exiles Mutant | -9/Mines Scavenger-Mutant | -8/Materials Resources | -11 -10 -10 -10 -9 -8 ----------- Run | Jun Mat Min Exi Min Mat Matter Collected 450 | 184 46 . . 20 200 Remotely . | . . . . . . Salvage Created 793 | . 302 44 . 80 367 Parts 44 | . 11 1 . 6 26 Haulers Intercepted . | . . . . . . Recyclers Shooed . | . . . . . . Parts Field Recycled . | . . . . . . Retrieved Matter . | . . . . . . Parts Self-Destructed . | . . . . . . Prevented . | . . . . . . Kills | -11 -10 -10 -10 -9 -8 ------- Run | Jun Mat Min Exi Min Mat Combat Hostiles Destroyed 21 | . 6 1 . 3 11 Guns 11 | . 5 . . 3 3 AOE 8 | . . . . . 8 Classes Destroyed 7 | . 2 . . 2 3 Tunneler 2 | . . . . 1 1 Watcher 1 | . 1 . . . . Swarmer 3 | . . . . 3 . Cutter 3 | . . . . . 3 Grunt 13 | . 6 1 . . 6 Sentry 1 | . . . . . 1 Hunter 1 | . . . . . 1 Best Kill Streak 6 | . 3 1 . 3 6 Combat Bots Only 6 | . 3 1 . 3 6 Max Kills in Single Turn 2 | . 1 1 . 1 2 Gunslinging . | . . . . . . Exploded 2 | . . . . . 2 Melee . | . . . . . . Uniques/NPCs Destroyed . | . . . . . . Combat | -11 -10 -10 -10 -9 -8 -------- Run | Jun Mat Min Exi Min Mat Damage Taken 932 | . 206 . . 55 671 Core 98 | . 45 . . 8 45 Absorbed by Shields . | . . . . . . Redirected to Shielding 12 | . . . . . 12 Core Remaining (%) 89 | 100 . . . 78 . Volleys Fired 45 | . 16 4 . 5 20 Largest 2 | . 2 2 . 2 2 Hottest 124 | . 112 112 . 112 124 Shots Fired 84 | . 32 8 . 10 34 Gun 75 | . 32 8 . 10 25 Cannon 4 | . . . . . 4 Launcher 5 | . . . . . 5 Special . | . . . . . . Kinetic . | . . . . . . Thermal 79 | . 32 8 . 10 29 Explosive 5 | . . . . . 5 Electromagnetic . | . . . . . . Robot Hit Streak 9 | . 5 9 . 5 6 Robot Miss Streak 7 | . 2 1 . 2 7 Penetration Max . | . . . . . . Secondary Targets 2 | . 1 . . 1 . Max Gunslinging Chain 1 | . 1 . . 1 . Shots Hit Robots 48 | . 21 6 . 6 15 Core Hits 35 | . 7 1 . 4 23 Critical Kills . | . . . . . . Critical Parts Destroyed . | . . . . . . Critical Strikes 6 | . 3 . . 2 1 Burn 6 | . 3 . . 2 1 Melee Attacks . | . . . . . . Impact . | . . . . . . Slashing . | . . . . . . Piercing . | . . . . . . Sneak Attacks . | . . . . . . Combat Hostiles . | . . . . . . Follow-up Attacks . | . . . . . . Damage Inflicted 1347 | . 354 101 . 102 790 Guns 725 | . 354 101 . 102 168 Cannons 21 | . . . . . 21 Explosions 601 | . . . . . 601 Melee . | . . . . . . Ramming . | . . . . . . Kinetic . | . . . . . . Thermal 746 | . 354 101 . 102 189 Explosive 601 | . . . . . 601 Electromagnetic . | . . . . . . Impact . | . . . . . . Slashing . | . . . . . . Piercing . | . . . . . . Highest Corruption . | . . . . . . Average Corruption . | . . . . . . Corruption Purged . | . . . . . . Corruption Blocked . | . . . . . . Overload Shots . | . . . . . . Overflow Damage 42 | . . . . . 42 Projectiles . | . . . . . . Explosions 42 | . . . . . 42 Melee . | . . . . . . Knockbacks . | . . . . . . Impact . | . . . . . . Kinetic . | . . . . . . Secondary . | . . . . . . Self-Inflicted Damage 140 | . . . . . 140 Shots 3 | . . . . . 3 Rammed . | . . . . . . Targets Rammed . | . . . . . . Kicked . | . . . . . . Crushed . | . . . . . . Highest Temperature 336 | . 336 84 . 84 42 Average Temperature 84 | . 113 45 . 39 20 Received Heat Transfer 270 | . 117 . . . 153 Siege Activations . | . . . . . . Robots Corrupted . | . . . . . . Combat Hostiles . | . . . . . . Parts Fried . | . . . . . . Impact Corruptions . | . . . . . . Robots Melted 2 | . 1 1 . . . Combat Hostiles 2 | . 1 1 . . . Parts Melted 5 | . 3 . . 2 . Heat Transferred 2072 | . 999 222 . 370 481 Parts Sabotaged . | . . . . . . Parts Stolen . | . . . . . . Parts Stripped . | . . . . . . Power Chain Reactions . | . . . . . . Missiles Intercepted . | . . . . . . Alert | -11 -10 -10 -10 -9 -8 ------- Run | Jun Mat Min Exi Min Mat Peak Influence 364 | . 192 127 . 75 364 Initial 74 | . . 74 . . 29 Average 124 | . 76 98 . 69 195 Maximum Alert Level 1 | . . . . . 1 Low Security (%) 86 | . 100 100 . 100 64 Level 1 13 | . . . . . 35 Level 2 . | . . . . . . Level 3 . | . . . . . . Level 4 . | . . . . . . Level 5 . | . . . . . . High Security . | . . . . . . Max Security . | . . . . . . Squads Dispatched 4 | . 2 . . . 2 Investigation 2 | . 1 . . . 1 Extermination . | . . . . . . Reinforcement 2 | . 1 . . . 1 Assault . | . . . . . . Garrison . | . . . . . . Intercept . | . . . . . . Searches Triggered . | . . . . . . Construction Impeded . | . . . . . . Haulers Reinforced . | . . . . . . Active Scanning Responses . | . . . . . . Cargo Convoy Interrupts . | . . . . . . Stealth | -11 -10 -10 -10 -9 -8 --------- Run | Jun Mat Min Exi Min Mat Distress Signals 3 | . 3 . . . . Communications Jammed . | . . . . . . Distress Signals . | . . . . . . Times Spotted 28 | . 9 2 . 4 13 Peak Tracking Total 6 | . 3 2 . 2 6 Tactical Retreats 2 | . . . . . 2 Traps | -11 -10 -10 -10 -9 -8 ------- Run | Jun Mat Min Exi Min Mat Traps Triggered 1 | . . . . . 1 Indirectly . | . . . . . . Trap Hack Attempts . | . . . . . . Triggered . | . . . . . . Disarmed . | . . . . . . Reprogrammed . | . . . . . . Reused . | . . . . . . Traps Extracted . | . . . . . . Installed . | . . . . . . Triggered . | . . . . . . Machines | -11 -10 -10 -10 -9 -8 ---------- Run | Jun Mat Min Exi Min Mat Machines Disabled 1 | . 1 . . . . Max in Single Turn 1 | . 1 . . . . Machines Repaired . | . . . . . . Machines Sabotaged . | . . . . . . Overloaded Fab Kills . | . . . . . . Hacking | -11 -10 -10 -10 -9 -8 --------- Run | Jun Mat Min Exi Min Mat Machines Accessed 5 | . 3 . 2 . . Terminals 3 | . 3 . . . . Fabricators . | . . . . . . Repair Stations . | . . . . . . Recycling Units . | . . . . . . Scanalyzers . | . . . . . . Garrison Access . | . . . . . . Total Hacks 12 | . 10 . 2 . . Successful 7 | . 5 . 2 . . Failed 5 | . 5 . . . . Catastrophic 1 | . 1 . . . . Database Lockouts . | . . . . . . Manual 10 | . 9 . 1 . . Terminals 10 | . 10 . . . . Fabricators . | . . . . . . Repair Stations . | . . . . . . Recycling Units . | . . . . . . Scanalyzers . | . . . . . . Garrison Access . | . . . . . . Terminal Hacks 3 | . 1 . 2 . . Record 1 | . . . 1 . . Terminal Index 1 | . 1 . . . . EX-Prototype ID Bank 1 | . . . 1 . . Fabricator Hacks . | . . . . . . Repair Station Hacks . | . . . . . . Recycling Unit Hacks . | . . . . . . Scanalyzer . | . . . . . . Garrison Access Hacks . | . . . . . . Unauthorized Hacks 4 | . 4 . . . . Terminals 4 | . 4 . . . . Assimilate 1 | . 1 . . . . Botnet 2 | . 2 . . . . Disrupt 1 | . 1 . . . . Fabricators . | . . . . . . Repair Stations . | . . . . . . Recycling Units . | . . . . . . Scanalyzers . | . . . . . . Garrison Access . | . . . . . . Data Cores Recovered . | . . . . . . Used . | . . . . . . Hacking Detections 2 | . 2 . . . . Full Trace Events 1 | . 1 . . . . Feedback Events . | . . . . . . Feedback Blocked . | . . . . . . Robot Schematics Acquired . | . . . . . . Robots Built . | . . . . . . Authchips . | . . . . . . Time . | . . . . . . Total Robot Build Rating . | . . . . . . Part Schematics Acquired . | . . . . . . Parts Built . | . . . . . . Authchips . | . . . . . . Time . | . . . . . . Total Part Build Rating . | . . . . . . Parts Repaired . | . . . . . . Time . | . . . . . . Parts Recycled . | . . . . . . Recycled Matter . | . . . . . . Retrieved Matter . | . . . . . . Retrieved Components . | . . . . . . Parts Scanalyzed . | . . . . . . Part Schematics Acquired . | . . . . . . Parts Damaged . | . . . . . . Bothacking | -11 -10 -10 -10 -9 -8 ------------ Run | Jun Mat Min Exi Min Mat Used RIF Installer . | . . . . . . Robots Hacked . | . . . . . . Non-combat . | . . . . . . Combat . | . . . . . . Robot Hacks Applied . | . . . . . . Relay Couplers Released . | . . . . . . Fabnet Peak Effective % . | . . . . . . Robots Rewired . | . . . . . . Allies Hacked . | . . . . . . Hacks Repelled . | . . . . . . Allies | -11 -10 -10 -10 -9 -8 -------- Run | Jun Mat Min Exi Min Mat Total Allies 1 | . . 1 . . . Largest Group 1 | . . 1 1 . . Highest-Rated Group 31 | . . 31 31 . . Highest-Rated Ally 31 | . . 31 31 . . Total Orders . | . . . . . . Ally Attacks 12 | . . 12 . . . Total Damage 186 | . . 186 . . . Kills 1 | . . 1 . . . Allies Corrupted . | . . . . . . Allies Melted . | . . . . . . Intel | -11 -10 -10 -10 -9 -8 ------- Run | Jun Mat Min Exi Min Mat Robot Analysis Total . | . . . . . . Derelict Logs Recovered 2 | . . 1 . 1 . Drone Launches . | . . . . . . Drone Recoveries . | . . . . . . Exploration | -11 -10 -10 -10 -9 -8 ------------- Run | Jun Mat Min Exi Min Mat Turns Passed 1038 | . 182 150 235 167 304 Spaces Moved 730 | 1 92 116 218 166 137 Core . | . . . . . . Treads 75 | . . . . . 75 Legs 655 | 1 92 116 218 166 62 Wheels . | . . . . . . Hover . | . . . . . . Flight . | . . . . . . Fastest Speed 90 | 120 120 120 90 90 90 Average Speed 116 | 120 120 120 106 90 161 Slowest Speed 320 | 120 120 120 120 90 320 Overloaded Moves . | . . . . . . Propulsion Burnouts . | . . . . . . Robots Hopped . | . . . . . . Cave-ins Triggered . | . . . . . . Exploration Rate (%) 28 | 2 27 33 60 40 11 Regions Visited 5 Branch Regions 3 Pre-discovered Areas 2 | . . 1 1 . . Known Exits Taken . | . . . . . . Unknown Exits Taken 5 | 1 1 1 1 1 . Scrap Searched 1 | . . . . 1 . Spaces Dug . | . . . . . . Terrain Destroyed 50 | . . . . . 50 Melee . | . . . . . . Projectile . | . . . . . . AOE 50 | . . . . . 50 Terrain Rammed . | . . . . . . Walls Destroyed . | . . . . . . Machines Disabled . | . . . . . . Actions | -11 -10 -10 -10 -9 -8 --------- Run | Jun Mat Min Exi Min Mat Total 831 | . 133 119 221 174 184 Wait 11 | . 11 . . . . Move 725 | . 91 115 217 165 137 Hop . | . . . . . . Pick Up 12 | . 6 . . 2 4 Fast Attach 12 | . 3 . 2 . 7 Attach 5 | . . . . . 5 Detach 2 | . . . . . 2 Swap 5 | . . . . . 5 Drop 14 | . 6 . 2 2 4 Fire 45 | . 16 4 . 5 20 Melee . | . . . . . . Ram . | . . . . . . Kick . | . . . . . . Crush . | . . . . . . Escape Stasis . | . . . . . . Rewire . | . . . . . . Trap . | . . . . . . Miscellaneous . | . . . . . . Route ------- -11/Junkyard -10/Materials -10/Mines -10/Exiles -9/Mines -8/Materials (discovered 2 exits: Fac / [*Sto]) History --------- Turn | Location | Event 1 | -11/Junkyard | Discovered new exit (range 0) 1 | -11/Junkyard | Entered Materials 132 | -10/Materials | Discovered new exit (range 15) 183 | -10/Materials | Entered Mines 186 | -10/Mines | Received a Mining Laser from a helpful Derelict 239 | -10/Mines | Learned location of Storage (-8) 310 | -10/Mines | Build established: Mutant 329 | -10/Mines | Deemed a non-threat by the Exiles lab entrance 329 | -10/Mines | Discovered new exit (range 5) 333 | -10/Mines | Entered Exiles 333 | -10/Exiles | Accompanied by 1 ally 366 | -10/Exiles | Met 8R-AWN 385 | -10/Exiles | Met EX-HEX 420 | -10/Exiles | Met EX-BIN 437 | -10/Exiles | Aligned with FarCom system 438 | -10/Exiles | Given EX-Vault access code 467 | -10/Exiles | Opened EX-Vault 476 | -10/Exiles | Found Potential Leg 479 | -10/Exiles | Found Potential Leg 498 | -10/Exiles | Warned to stay clear of 0b10 Research branches 528 | -10/Exiles | Met EX-DEC 531 | -10/Exiles | Learned location of Zion (-6) 557 | -10/Exiles | Discovered new exit (range 14) 568 | -10/Exiles | Left Exiles lab with Potential Leg 568 | -10/Exiles | Entered Mines 653 | -9/Mines | Found a damaged Exp. Sensor Array with a note attached 657 | -9/Mines | Found Prototype Device 660 | -9/Mines | Assembled infested the area 665 | -9/Mines | Assisted by a Guerilla fighting off Assembled 727 | -9/Mines | Discovered new exit (range 8) 735 | -9/Mines | Entered Materials 735 | -8/Materials | Evolved 4 slots: Propulsion x1, Utility x3 736 | -8/Materials | Identified exit to Factory 776 | -8/Materials | Discovered new exit (range 13) 1039 | -8/Materials | Self-destructed Last Messages --------------- 00939_ Lgt. Armor Plating destroyed. 00942_ C-17 Slicer destroyed. 00945_ Acquired 12 matter. 00955_ The unstable cave ceiling collapses. 00974_ T-07 Excavator destroyed. 00977_ Acquired 18 matter. 00994_ Acquired 6 matter. 00997_ U-05 Engineer lays Concrete. 00998_ U-05 Engineer builds a Wall. 01007_ U-05 Engineer lays Concrete. 01008_ U-05 Engineer builds a Wall. 01012_ U-05 Engineer lays Concrete. 01021_ Lgt. Angular Momentum Engine destroyed. 01021_ Imp. Medium Laser destroyed. 01022_ Acquired 10 matter. 01027_ Lgt. Treads severed. 01029_ Acquired 10 matter. 01030_ Lgt. Treads severed. 01032_ Acquired Lgt. Treads. 01036_ Imp. Medium Laser severed. Map ----- +----------------------------------------------------+ | ?????????????????????????????????????????????????? | | ?????????????????????????????????????????????????? | | ?????????????????????????????????????????????????? | | ?????????????????????????????????????????????????? | | ?????????????????????????????????????????????????? | | ?????????????????????????????????????????????????? | | ?????????????????????????????????????????????????? | | ?????????????????????????????????????????????????? | | ?????????????????????????????????????????????????? | | ?????????????????????????????????????????????????? | | ?????????????????????????????????????????????????? | | ?????????????????????????????????????????????????? | | ?????????????????????????????????????????????????? | | ?????????????????????????????????????????????????? | | ?????????????????????????????????????????????????? | | ?????????????????????????????????????????????????? | | ?????????????????????????????????????????????????? | | ???????????????????#######???????????????????????? | | ???????????????????# #???????????????????????? | | ????????????######## #???w???????????????????? | | ????????????# %= #???????????????????????? | | ??????????#?#|###### #???????????????????????? | | ?????????? ?# #????# #???????????????????????? | | ?????????? ?#=###### ## #?????????????????????? | | ?????????? #!# ##### #??????????????????? | | ??????? ?? # # [ !c@= #??????????????????? | | ??????# """ # # *%=#######??????????????????? | | ??????# """ # # " " =%# #??????????????????????? | | ??????# """ # # "R" # # # #??????????????????????? | | ??????# # # """ # ###??????????????????????? | | ??????# """ #=# ### ##???????????????????????? | | ??????# """ # ######??# #????????????????????????? | | ??????# """ /*##?????# #????????????????????????? | | ??????# = #??####/###??????????????????????? | | ??????#+#+## ##??# [ #??????????????????????? | | ??????# *] #??#""" #???####???????????????? | | ??????+ %= #??#""" *#?? #???????????????? | | ??????# #??#""" #?? """#???????????????? | | ??????### #??# ] #? """#???????????????? | | ????????# ?#= #? """#???????????????? | | ????????# #####+### #???????????????? | | ????????# *% # """#???????????????? | | ????????# !%<% + """#???????????????? | | ????????# [= # ! """#???????????????? | | ????????# ####### # #???????????????? | | ????????#+ # #?????# #? """#???????????????? | | ????????? # ==?????# #? """#???????????????? | | ????????? + ==?????# #?? """#???????????????? | | ????????? # !!#????# #?? #???????????????? | | ????????? # ???????# #???####???????????????? | +----------------------------------------------------+ Best States ------------- Heat Dissipation 60 Energy Generation 18 Energy Capacity 250 Matter Stores 300 Matter Capacity 300 Sight Range 16 Terrain Scan Density 10 Armor Coverage 150 Utility Shielding 66 Evasion (%) 57 Recoil Reduction 3 Item Schematics ----------------- None Robot Schematics ------------------ None Fabricated ------------ Nothing Alien Tech Used ----------------- None Achievements -------------- None Challenges ------------ None Game ------ Seed DispersionFusionClaws Manual? 1 Play Time 00:08:50 Cumulative 339.1 hours Start 2023.07.03 @ 16:59:01 End 2023.07.06 @ 15:16:44 Sessions 5 Manual Loads 0 Difficulty Rogue Special Mode None Game No. 363 Rogue 363 Adventurer 0 Explorer 0 Win Type - Total 28 Types 16/3/3/1/2/0/3/0/0 Lore% 87 Gallery% 87 Achievement% 82 Wizard Run 0 Options --------- ASCII 0 Keyboard 0 Movement Arrows Keybinds 0 Fullscreen 2 Font 24/Smallcaps Map View 76x50 Tactical HUD 1 Map Filters NONE Filters NONE Steam 1 RUN: 14bb544a-2aa8-4ee1-8206-014d6ad51461